Cogmind - Beta 15 @@@ ROGUE MODE // 2025.05.28 @ 15:43:48 Player: Elias Result: Destroyed by P-80 Master with Gamma Rifle Performance ------------- Evolutions (9) 4500 Regions Visited (14) 2800 Robots Destroyed (57) 285 Value Destroyed (1399) 1399 Prototype IDs (14) 280 Alien Tech Used (0) 0 Bonus (105) 105 TOTAL SCORE: 9369 Bonus ------- Follower Combat Kills 105 Cogmind --------- Core Integrity 0/1600 Matter 149/300 Energy 99/100 System Corruption 22% Temperature Cool (0) Movement Core (50) Location -1/Access Parts ------- > --- POWER (3) -------- (None) > --- PROPULSION (10) -- (None) > --- UTILITY (9) ------ (None) > --- WEAPON (3) ------- (None) > --- INVENTORY (5) ---- Micro Antimatter Reactor Advanced Cooling System Improved Actuator Array Improved Reaction Control System Layered Light Armor Plating Peak State ------------ > --- POWER ------------ Light Quantum Reactor Light Quantum Reactor Light Quantum Reactor > --- PROPULSION ------- Cooled Field Propulsion Drive Field Propulsion Array Field Propulsion Array Field Propulsion Array Impulse Thruster Array Improved Q-thruster > --- UTILITY ---------- Medium Storage Unit Advanced Sensor Array Experimental Signal Interpreter Advanced Melee Analysis Suite Advanced Melee Analysis Suite Advanced Actuator Array Improved Force Booster Layered Medium Armor Plating Graphene Brace > --- WEAPON ----------- Plasma Sword Plasma Sword Plasma Sword > --- INVENTORY -------- Compact Particle Reactor Light Quantum Reactor Impulse Thruster Advanced Cooling System Improved Actuator Array Improved Reaction Control System Layered Light Armor Plating Improved Hardlight Generator Enhanced Nova Cannon Plasma Sword [Rating: 180] Favorites ----------- Power Ion Engine Engine Ion Engine Power Core Improved Fusion Compressor Reactor Light Quantum Reactor Propulsion Aluminum Leg Treads Light Treads Leg Aluminum Leg Flight Unit Improved Cesium-ion Thruster Utility Small Storage Unit Device Seismic Detector Storage Small Storage Unit Processor Advanced Melee Analysis Suite Hackware Advanced Hacking Suite Protection Layered Light Armor Plating Weapon Light Assault Rifle Energy Gun Heavy Particle Gun Ballistic Gun Light Assault Rifle Ballistic Cannon Assault Cannon Launcher Improved Grenade Launcher Special Weapon Mining Laser Slashing Weapon Plasma Sword Piercing Weapon Lance Build | -11 -10 -9 -9 -8 -7 -6 -5 -4 -4 -4 -3 -3 -2 -1 ------- Run | Yrd Mat Mat Min Mat Fac Fac Fac Fac Upp Upp Res Tes Res Acc Slots Evolved 18 | . . 2 . 2 2 2 2 2 . . 2 . 2 2 Power 2 | . . . . . . 1 . . . . . . 1 . Propulsion 8 | . . 1 . 2 . . 1 . . . 1 . 1 2 Utility 7 | . . 1 . . 2 1 1 1 . . 1 . . . Weapon 1 | . . . . . . . . 1 . . . . . . Parts Attached 122 | 9 3 14 . 13 12 16 9 13 1 . 6 8 8 10 Power 21 | 1 . 1 . 3 2 3 2 1 . . 3 1 1 3 Engine 5 | 1 . 1 . 1 1 . 1 . . . . . . . Core 10 | . . . . 2 1 3 1 1 . . 2 . . . Reactor 6 | . . . . . . . . . . . 1 1 1 3 Propulsion 39 | 3 2 5 . 6 6 2 4 1 1 . 1 3 1 4 Treads 1 | 1 . . . . . . . . . . . . . . Leg 5 | 2 2 1 . . . . . . . . . . . . Wheel . | . . . . . . . . . . . . . . . Hover . | . . . . . . . . . . . . . . . Flight 33 | . . 4 . 6 6 2 4 1 1 . 1 3 1 4 Utility 37 | 3 . 3 . 2 2 5 3 7 . . 2 1 6 3 Device 21 | 2 . 1 . 2 1 5 1 3 . . 1 . 3 2 Storage 3 | 1 . . . . 1 . . . . . 1 . . . Processor 9 | . . 2 . . . . 1 3 . . . 1 2 . Hackware 1 | . . . . . . . . 1 . . . . . . Protection 3 | . . . . . . . 1 . . . . . 1 1 Artifact . | . . . . . . . . . . . . . . . Weapon 25 | 2 1 5 . 2 2 6 . 4 . . . 3 . . Energy Gun 3 | . . 2 . . . 1 . . . . . . . . Energy Cannon . | . . . . . . . . . . . . . . . Ballistic Gun 7 | 2 1 1 . . 2 1 . . . . . . . . Ballistic Cannon 1 | . . . . 1 . . . . . . . . . . Launcher 2 | . . 1 . 1 . . . . . . . . . . Special Weapon 1 | . . 1 . . . . . . . . . . . . Impact Weapon . | . . . . . . . . . . . . . . . Slashing Weapon 7 | . . . . . . 4 . . . . . 3 . . Piercing Weapon 4 | . . . . . . . . 4 . . . . . . Special Melee Weapon . | . . . . . . . . . . . . . . . Unidentified Prototypes 12 | . . 2 . 1 . 1 1 . . . . 4 3 . Parts Lost 29 | . . . . 4 . 6 3 5 . . . 2 1 8 Power 5 | . . . . . . 1 1 1 . . . . 1 1 Propulsion 11 | . . . . 2 . . 1 2 . . . . . 6 Utility 8 | . . . . . . 3 1 1 . . . 2 . 1 Weapon 5 | . . . . 2 . 2 . 1 . . . . . . Highest Loss Streak 7 | . . . . 3 . 4 2 3 . . . 2 1 7 To Critical Strikes . | . . . . . . . . . . . . . . . Average Backups 6 | 4 7 7 8 7 9 9 9 9 9 10 9 9 7 8 Power . | . 1 . . . 1 1 . . 1 1 1 1 1 1 Propulsion 1 | 1 2 1 2 1 1 2 1 1 . 1 . 2 1 . Utility 2 | . . 2 3 4 4 3 3 4 6 6 5 5 3 4 Weapon 2 | 1 3 3 3 1 2 2 4 3 2 2 1 . 1 1 Tool/Special . | . . . . . . . . . . . . . . . Unused Backups 25 | . . 2 1 3 4 3 . 1 1 . 2 2 1 5 Power 1 | . . . . . . . . . . . . . . 1 Propulsion 2 | . . 1 . . 1 . . . . . . . . . Utility 16 | . . . 1 2 2 3 . 1 1 . 2 1 1 2 Weapon 6 | . . 1 . 1 1 . . . . . . 1 . 2 Tool/Special . | . . . . . . . . . . . . . . . Average Slot Usage (%) 89 | . 99 91 100 97 90 92 88 87 94 94 89 88 80 65 Engine 4 | . 14 11 11 8 2 5 . . . . . . . . Core 2 | . . . . . 4 5 9 6 5 5 4 1 . . Reactor 1 | . . . . . . . . . . . . 7 8 6 Leg 5 | . 28 25 . . . . . . . . . . . . Flight 25 | . . 2 33 44 38 33 34 29 31 31 31 25 21 19 Device 11 | . 14 11 11 9 13 20 9 7 10 10 9 10 7 12 Storage 7 | . 14 11 11 9 7 6 5 5 5 5 4 4 4 3 Processor 11 | . . 8 11 9 7 6 10 18 21 21 19 18 16 9 Hackware 1 | . . . . . . . . 4 5 5 4 4 4 . Energy Gun 1 | . . 6 11 . . . . . . . . . . . Ballistic Gun 6 | . 27 13 11 7 11 4 . . . . . . . . Slashing Weapon 3 | . . . . . . 7 11 3 . . . 4 13 9 Piercing Weapon 3 | . . . . . . . . 9 15 15 14 9 . . Peak Build Rating 180 | 9 7 22 22 35 49 63 71 105 98 98 119 136 159 180 Average Rating 40 | 6 6 12 22 29 40 57 64 89 97 98 105 126 150 138 On Entrance 63 | . 7 7 22 22 34 49 55 67 97 98 98 119 126 150 Naked Turns 37 | . . . . . . . . . . . . . . 37 Heaviest Build 74 | 14 14 15 15 22 29 37 35 34 29 29 41 46 58 74 Greatest Support 78 | 20 20 30 15 25 36 39 45 40 32 32 42 53 62 78 Greatest Overweight (x) 3 | 1 3 2 . . . 1 1 1 . . 1 . . 2 Average Overweight (x) . | . . . . . . . . . . . . . . . Largest Inventory Capacity 10 | 8 8 8 8 8 10 10 10 10 10 10 10 10 10 10 Average Capacity 8 | 7 8 8 8 8 9 10 10 10 10 10 10 10 10 9 Most Carried 10 | 6 8 8 8 8 10 10 10 10 10 10 10 10 10 10 Average Carried 6 | 4 7 7 8 7 9 9 9 8 9 10 9 9 8 8 Final Capacity 10 | 8 8 8 8 8 10 10 10 10 10 10 10 10 10 5 Final Carried 10 | 5 8 8 8 8 10 10 10 9 10 10 9 10 9 5 Class Distribution -------------------- 56% | Mutant 20% | Sprinter 15% | Scout 5% | Scavenger-Mutant Dominant Class ---------------- Mutant | -10/Materials Scavenger-Mutant | -9/Materials Mutant | -9/Mines Sprinter | -8/Materials Sprinter | -7/Factory Sprinter | -6/Factory Scout | -5/Factory Scout | -4/Factory Scout | -4/Upper Caves Scout | -4/Upper Caves Scout | -3/Research Scout | -3/Testing Sprinter | -2/Research Sprinter | -1/Access Resources | -11 -10 -9 -9 -8 -7 -6 -5 -4 -4 -4 -3 -3 -2 -1 ----------- Run | Yrd Mat Mat Min Mat Fac Fac Fac Fac Upp Upp Res Tes Res Acc Matter Collected 2681 | 299 205 156 86 180 40 494 124 336 155 . 288 . 208 110 Remotely . | . . . . . . . . . . . . . . . Salvage Created 2047 | 163 293 252 . 188 40 285 135 256 . . 288 . 48 99 Parts 143 | 13 27 16 . 17 4 20 11 10 . . 14 . 3 8 Haulers Intercepted 5 | . 1 1 . 1 1 1 . . . . . . . . Recyclers Shooed . | . . . . . . . . . . . . . . . Parts Field Recycled . | . . . . . . . . . . . . . . . Retrieved Matter . | . . . . . . . . . . . . . . . Parts Self-Destructed . | . . . . . . . . . . . . . . . Prevented . | . . . . . . . . . . . . . . . Kills | -11 -10 -9 -9 -8 -7 -6 -5 -4 -4 -4 -3 -3 -2 -1 ------- Run | Yrd Mat Mat Min Mat Fac Fac Fac Fac Upp Upp Res Tes Res Acc Combat Hostiles Destroyed 29 | . 9 5 . 5 . 5 3 1 . . . . . 1 Melee 5 | . . . . . . . 3 1 . . . . . 1 Guns 18 | . 9 3 . 2 . 4 . . . . . . . . AOE 6 | . . 2 . 3 . 1 . . . . . . . . Classes Destroyed 14 | 3 4 1 . 2 . 1 . 1 . . 1 . . 1 Worker 6 | 2 . . . 2 . 1 . . . . . . 1 . Builder 2 | . . . . . . . . . . . 1 . 1 . Tunneler 3 | 3 . . . . . . . . . . . . . . Hauler 5 | . 1 1 . 1 1 1 . . . . . . . . Recycler 4 | 1 . . . . . . . 1 . . 2 . . . Operator 2 | . . . . . . . . 1 . . . . . 1 Watcher 6 | . 2 1 . 1 . . 1 1 . . . . . . Swarmer 9 | . 6 . . . . 3 . . . . . . . . Cutter 5 | . . . . 3 . . 2 . . . . . . . Grunt 7 | . 3 2 . 1 . . 1 . . . . . . . Duelist 1 | . . . . 1 . . . . . . . . . . Sentry 4 | . . 3 . . . . . 1 . . . . . . Hunter 2 | . . . . . . 2 . . . . . . . . Programmer 1 | . . . . . . . . . . . . . . 1 Best Kill Streak 6 | 2 3 4 . 6 1 6 3 2 . . 2 . 2 1 Combat Bots Only 5 | . 3 3 . 3 . 5 3 1 . . . . . 1 Max Kills in Single Turn 6 | 1 1 2 . 6 1 1 1 1 . . 1 . 1 1 Gunslinging . | . . . . . . . . . . . . . . . Exploded 3 | . . 1 . 3 . 1 . . . . . . . . Melee 1 | . . . . . . . 1 1 . . . . . 1 Uniques/NPCs Destroyed . | . . . . . . . . . . . . . . . Combat | -11 -10 -9 -9 -8 -7 -6 -5 -4 -4 -4 -3 -3 -2 -1 -------- Run | Yrd Mat Mat Min Mat Fac Fac Fac Fac Upp Upp Res Tes Res Acc Hostile Shots Fired 667 | . 39 17 . 23 9 116 27 37 6 . 8 32 75 278 Missed 309 | . 10 5 . 13 6 45 9 15 3 . 3 19 54 127 Hits 358 | . 29 12 . 10 3 71 18 22 3 . 5 13 21 151 Melee 4 | . . . . 1 . . 3 . . . . . . . Projectile 354 | . 29 12 . 9 3 71 15 22 3 . 5 13 21 151 Critical Strikes 23 | . 2 . . . . 5 1 . . . . 2 1 12 Actively Blocked 2 | . . . . . . . . . . . . . 1 1 Part Disruptions 3 | . . . . . . . . . . . . . 1 2 Damage Taken 7382 | . 290 166 . 607 48 1321 382 567 60 . 100 261 368 3212 Core 2705 | . 29 44 . 323 14 386 37 144 19 . . 29 80 1600 Absorbed by Shields 27 | . . . . . . . . 27 . . . . . . Core Remaining (%) 84 | 100 88 . 89 41 98 54 96 . . 85 . 97 94 . Volleys Fired 132 | 23 33 17 . 28 14 17 . . . . . . . . Largest 2 | 2 2 2 . 2 2 2 . . . . . . . . Hottest 100 | 40 40 100 . 100 56 67 . . . . . . . . Shots Fired 228 | 46 66 32 . 29 28 27 . . . . . . . . Gun 213 | 46 66 27 . 20 28 26 . . . . . . . . Cannon . | . . . . . . . . . . . . . . . Launcher 5 | . . 3 . 1 . 1 . . . . . . . . Special 10 | . . 2 . 8 . . . . . . . . . . Kinetic 201 | 46 66 15 . 20 28 26 . . . . . . . . Thermal 22 | . . 14 . 8 . . . . . . . . . . Explosive 5 | . . 3 . 1 . 1 . . . . . . . . Electromagnetic . | . . . . . . . . . . . . . . . Robot Hit Streak 11 | 5 9 11 . 8 3 9 . . . . . . . . Robot Miss Streak 5 | 5 5 2 . 1 3 2 . . . . . . . . Penetration Max 1 | . . . . . . 1 . . . . . . . . Secondary Targets 1 | . 1 . . . . . . . . . . . . . Max Gunslinging Chain 1 | . 1 . . . . . . . . . . . . . Shots Hit Robots 169 | 23 40 22 . 16 8 21 13 6 4 . 5 . 3 8 Core Hits 92 | 10 23 15 . 15 3 11 5 2 1 . 3 . 1 3 Critical Kills 1 | . . . . 1 . . . . . . . . . . Critical Parts Destroyed 2 | . . . . . 2 . . . . . . . . . Critical Strikes 10 | . . . . 1 2 1 2 . 2 . . . . 2 Destroy 3 | . . . . 1 2 . . . . . . . . . Sever 5 | . . . . . . 1 2 . . . . . . 2 Impale 2 | . . . . . . . . . 2 . . . . . Melee Attacks 139 | . . . . . . 10 22 20 10 . 8 10 30 29 Impact . | . . . . . . . . . . . . . . . Slashing 94 | . . . . . . 10 22 2 . . . 1 30 29 Piercing 45 | . . . . . . . . 18 10 . 8 9 . . Sneak Attacks 11 | . . . . . . 1 1 2 . . 4 . 3 . Combat Hostiles . | . . . . . . . . . . . . . . . Follow-up Attacks 8 | . . . . . . . 2 1 2 . . . 1 2 Damage Inflicted 4858 | 242 356 494 . 763 163 592 455 454 170 . 375 . 308 486 Guns 1633 | 239 356 278 . 227 163 370 . . . . . . . . Cannons . | . . . . . . . . . . . . . . . Explosions 800 | . . 216 . 536 . 48 . . . . . . . . Melee 2422 | . . . . . . 174 455 454 170 . 375 . 308 486 Ramming 3 | 3 . . . . . . . . . . . . . . Kinetic 1482 | 239 356 127 . 227 163 370 . . . . . . . . Thermal 572 | . . 151 . 421 . . . . . . . . . . Explosive 379 | . . 216 . 115 . 48 . . . . . . . . Electromagnetic . | . . . . . . . . . . . . . . . Impact . | . . . . . . . . . . . . . . . Slashing 1423 | . . . . . . 174 455 . . . . . 308 486 Piercing 999 | . . . . . . . . 454 170 . 375 . . . Highest Corruption 22 | . . . . 3 . 1 . 3 4 4 . . . 22 Average Corruption 4 | . . . . 3 . 1 . 2 3 4 . . . 9 Corruption Purged . | . . . . . . . . . . . . . . . Corruption Blocked . | . . . . . . . . . . . . . . . Effects 10 | . . . . 1 . . . . 4 . . . . 5 Message Errors 4 | . . . . 1 . . . . 2 . . . . 1 Matter Fused 2 | . . . . . . . . . 1 . . . . 1 Heat Flow Errors 1 | . . . . . . . . . 1 . . . . . Energy Discharges 1 | . . . . . . . . . . . . . . 1 Data Loss (minor) 1 | . . . . . . . . . . . . . . 1 Misdirections 1 | . . . . . . . . . . . . . . 1 Overload Shots . | . . . . . . . . . . . . . . . Overflow Damage 628 | . . . . 94 . 22 13 178 107 . 52 . 134 28 Projectiles . | . . . . . . . . . . . . . . . Explosions 94 | . . . . 94 . . . . . . . . . . Melee 534 | . . . . . . 22 13 178 107 . 52 . 134 28 Knockbacks . | . . . . . . . . . . . . . . . Impact . | . . . . . . . . . . . . . . . Kinetic . | . . . . . . . . . . . . . . . Secondary . | . . . . . . . . . . . . . . . Self-Inflicted Damage 209 | . . . . 209 . . . . . . . . . . Shots 3 | . . . . 3 . . . . . . . . . . Rammed . | . . . . . . . . . . . . . . . Targets Rammed 1 | 1 . . . . . . . . . . . . . . Kicked 1 | 1 . . . . . . . . . . . . . . Crushed . | . . . . . . . . . . . . . . . Highest Temperature 497 | . 25 284 . 136 133 383 332 497 220 . 22 144 73 364 Average Temperature 102 | . 9 45 . 40 55 115 140 192 112 . 14 46 22 161 Received Heat Transfer 651 | . 99 57 . 72 27 111 114 27 . . 9 72 36 27 Effects 23 | . . . . . . 6 3 11 . . . . . 3 Shutdowns 9 | . . . . . . 2 . 6 . . . . . 1 Energy Bleed 2 | . . . . . . 2 . . . . . . . . Interference 10 | . . . . . . 2 3 3 . . . . . 2 Short Circuit 1 | . . . . . . . . 1 . . . . . . Damage (minor) 1 | . . . . . . . . 1 . . . . . . Siege Activations . | . . . . . . . . . . . . . . . Martial Activations . | . . . . . . . . . . . . . . . Shielding Activations . | . . . . . . . . . . . . . . . Robots Disrupted . | . . . . . . . . . . . . . . . Combat Hostiles . | . . . . . . . . . . . . . . . Robots Corrupted . | . . . . . . . . . . . . . . . Combat Hostiles . | . . . . . . . . . . . . . . . Parts Fried . | . . . . . . . . . . . . . . . Impact Corruptions . | . . . . . . . . . . . . . . . Robots Melted . | . . . . . . . . . . . . . . . Combat Hostiles . | . . . . . . . . . . . . . . . Parts Melted 1 | . . . . 1 . . . . . . . . . . Heat Transferred 596 | . . 296 . 300 . . . . . . . . . . Parts Sabotaged . | . . . . . . . . . . . . . . . Parts Stolen . | . . . . . . . . . . . . . . . Parts Stripped . | . . . . . . . . . . . . . . . Power Chain Reactions . | . . . . . . . . . . . . . . . Alert | -11 -10 -9 -9 -8 -7 -6 -5 -4 -4 -4 -3 -3 -2 -1 ------- Run | Yrd Mat Mat Min Mat Fac Fac Fac Fac Upp Upp Res Tes Res Acc Maximum Alert Level 1 | . . . . 1 . . . . . . . . 1 1 Low Security (%) 96 | 100 100 100 100 80 100 100 100 100 . . 100 100 91 51 Level 1 3 | . . . . 19 . . . . . . . . 8 48 Level 2 . | . . . . . . . . . . . . . . . Level 3 . | . . . . . . . . . . . . . . . Level 4 . | . . . . . . . . . . . . . . . Level 5 . | . . . . . . . . . . . . . . . High Security . | . . . . . . . . . . . . . . . Max Security . | . . . . . . . . . . . . . . . Peak Influence 396 | 5 145 114 27 337 153 198 89 139 . . 40 9 228 396 Initial 153 | . . 44 27 . 153 12 68 11 . . 40 . . 136 Average 47 | . 90 65 5 122 94 140 64 50 . . 6 1 76 233 Influence Increases 2770 | 30 276 196 . 540 54 371 85 249 105 . 17 19 358 470 Destroy 0b10 Robot/C 640 | . 180 100 . 160 . 100 60 20 . . . . . 20 Destroy 0b10 Robot/NC 140 | 30 15 10 . 20 5 10 5 15 . . 15 . 10 5 Destroy Leader 172 | . 36 44 . 34 2 22 12 12 . . . . . 10 Allied During Kill 12 | . . . . 12 . . . . . . . . . . Successful Hack 79 | . . . . 38 16 . . 4 . . . 9 12 . Disable Machine 150 | . . 30 . 45 30 15 . 15 . . . . . 15 Destroy Structure 182 | . . 12 . 36 1 14 8 18 . . 2 10 51 30 Partial Spotted 150 | . . . . 60 . . . 30 . . . . 60 . Lose Combat Pursuer 1245 | . 45 . . 135 . 210 . 135 105 . . . 225 390 Influence Decreases 2404 | 30 170 231 71 203 364 257 203 143 158 15 78 19 130 332 Entered New Map 566 | . . 62 44 . 184 15 73 12 48 15 21 . . 92 Time Decay 1498 | 30 170 169 27 123 160 182 70 101 110 . 57 19 120 160 Lost Part 250 | . . . . 40 . 60 30 30 . . . . 10 80 Lost Ally 90 | . . . . 40 20 . 30 . . . . . . . Squads Dispatched 29 | . . 1 . 3 3 4 3 2 . . 1 1 4 7 Investigation 3 | . . . . . 2 . . . . . . . . 1 Extermination 8 | . . . . . . 1 . 1 . . 1 1 1 3 Reinforcement 16 | . . 1 . 3 1 3 3 1 . . . . 3 1 Assault . | . . . . . . . . . . . . . . . Garrison 2 | . . . . . . . . . . . . . . 2 Intercept . | . . . . . . . . . . . . . . . Searches Triggered . | . . . . . . . . . . . . . . . Construction Impeded . | . . . . . . . . . . . . . . . Haulers Reinforced 2 | . . . . . . 1 1 . . . . . . . Active Scanning Responses . | . . . . . . . . . . . . . . . Cargo Convoy Interrupts . | . . . . . . . . . . . . . . . Stealth | -11 -10 -9 -9 -8 -7 -6 -5 -4 -4 -4 -3 -3 -2 -1 --------- Run | Yrd Mat Mat Min Mat Fac Fac Fac Fac Upp Upp Res Tes Res Acc Distress Signals 17 | . 1 2 . 2 . 3 1 2 . . . 1 2 3 Communications Jammed . | . . . . . . . . . . . . . . . Distress Signals . | . . . . . . . . . . . . . . . Times Spotted 207 | . 14 12 . 22 5 27 9 15 7 1 2 13 29 51 Peak Tracking Total 22 | . 4 5 . 12 3 10 5 9 6 1 1 14 22 21 Tactical Retreats 33 | . 1 . . 5 . 6 . 6 3 . . . 5 7 Traps | -11 -10 -9 -9 -8 -7 -6 -5 -4 -4 -4 -3 -3 -2 -1 ------- Run | Yrd Mat Mat Min Mat Fac Fac Fac Fac Upp Upp Res Tes Res Acc Traps Triggered 7 | . 2 . . . . . 1 1 . . . . . 3 Indirectly . | . . . . . . . . . . . . . . . Trap Hack Attempts . | . . . . . . . . . . . . . . . Triggered . | . . . . . . . . . . . . . . . Disarmed . | . . . . . . . . . . . . . . . Reprogrammed . | . . . . . . . . . . . . . . . Reused . | . . . . . . . . . . . . . . . Traps Extracted . | . . . . . . . . . . . . . . . Installed . | . . . . . . . . . . . . . . . Triggered . | . . . . . . . . . . . . . . . Machines | -11 -10 -9 -9 -8 -7 -6 -5 -4 -4 -4 -3 -3 -2 -1 ---------- Run | Yrd Mat Mat Min Mat Fac Fac Fac Fac Upp Upp Res Tes Res Acc Machines Disabled 11 | . . 2 . 3 2 1 . 1 1 . . . . 1 Max in Single Turn 2 | . . 1 . 2 1 1 . 1 1 . . . . 1 Machines Repaired . | . . . . . . . . . . . . . . . Machines Dismantled . | . . . . . . . . . . . . . . . Machines Sabotaged . | . . . . . . . . . . . . . . . Overloaded Fab Kills . | . . . . . . . . . . . . . . . Hacking | -11 -10 -9 -9 -8 -7 -6 -5 -4 -4 -4 -3 -3 -2 -1 --------- Run | Yrd Mat Mat Min Mat Fac Fac Fac Fac Upp Upp Res Tes Res Acc Machines Accessed 34 | . 1 3 . 5 8 2 1 4 . . 5 2 2 1 Terminals 18 | . 1 1 . 5 4 2 . . . . 2 2 . 1 Fabricators 1 | . . . . . 1 . . . . . . . . . Repair Stations 2 | . . . . . . . . 1 . . 1 . . . Recycling Units 6 | . . 1 . . 1 . 1 1 . . 1 . 1 . Scanalyzers 6 | . . 1 . . 2 . . 1 . . 1 . 1 . Garrison Access 1 | . . . . . . . . 1 . . . . . . Total Hacks 76 | . 2 8 . 12 16 2 3 14 . . 8 3 5 3 Successful 34 | . . 4 . 6 5 . 1 11 . . 3 1 3 . Failed 42 | . 2 4 . 6 11 2 2 3 . . 5 2 2 3 Catastrophic 7 | . . . . 1 4 1 . 1 . . . . . . Database Lockouts . | . . . . . . . . . . . . . . . Manual . | . . . . . . . . . . . . . . . Terminals 33 | . 2 3 . 12 6 2 . . . . 2 3 . 3 Fabricators 3 | . . . . . 3 . . . . . . . . . Repair Stations 5 | . . . . . . . . 3 . . 2 . . . Recycling Units 12 | . . 3 . . 2 . 3 1 . . 2 . 1 . Scanalyzers 22 | . . 2 . . 5 . . 9 . . 2 . 4 . Garrison Access 1 | . . . . . . . . 1 . . . . . . Terminal Hacks 9 | . . 1 . 6 1 . . . . . . 1 . . Record 2 | . . . . 1 . . . . . . . 1 . . Prototype ID Bank 1 | . . . . 1 . . . . . . . . . . Open DSF 1 | . . . . . 1 . . . . . . . . . Emergency Access Points 1 | . . . . 1 . . . . . . . . . . Transport Status 1 | . . 1 . . . . . . . . . . . . Recall Investigation 1 | . . . . 1 . . . . . . . . . . Hauler Manifests 1 | . . . . 1 . . . . . . . . . . Zone Layout 1 | . . . . 1 . . . . . . . . . . Fabricator Hacks 1 | . . . . . 1 . . . . . . . . . Build 1 | . . . . . 1 . . . . . . . . . Repair Station Hacks 2 | . . . . . . . . 2 . . . . . . Scan Component 1 | . . . . . . . . 1 . . . . . . Repair 1 | . . . . . . . . 1 . . . . . . Recycling Unit Hacks 6 | . . 1 . . 1 . 1 1 . . 1 . 1 . Retrieve Matter 1 | . . . . . . . . . . . 1 . . . Retrieve Components 5 | . . 1 . . 1 . 1 1 . . . . 1 . Scanalyzer 16 | . . 2 . . 2 . . 8 . . 2 . 2 . Insert Component 7 | . . 1 . . 1 . . 3 . . 1 . 1 . Analyze 9 | . . 1 . . 1 . . 5 . . 1 . 1 . Garrison Access Hacks . | . . . . . . . . . . . . . . . Unauthorized Hacks . | . . . . . . . . . . . . . . . Terminals . | . . . . . . . . . . . . . . . Fabricators . | . . . . . . . . . . . . . . . Repair Stations . | . . . . . . . . . . . . . . . Recycling Units . | . . . . . . . . . . . . . . . Scanalyzers . | . . . . . . . . . . . . . . . Garrison Access . | . . . . . . . . . . . . . . . Data Cores Recovered 1 | . . . . . . . . . . . . . . 1 Used . | . . . . . . . . . . . . . . . Hacking Detections 27 | . 1 3 . 4 6 1 1 1 . . 5 2 2 1 Full Trace Events 2 | . . . . . 2 . . . . . . . . . Feedback Events . | . . . . . . . . . . . . . . . Feedback Blocked . | . . . . . . . . . . . . . . . Robot Schematics Acquired . | . . . . . . . . . . . . . . . Robots Built 2 | . . . . . 2 . . . . . . . . . Authchips . | . . . . . . . . . . . . . . . Time 40 | . . . . . 40 . . . . . . . . . Total Robot Build Rating 2 | . . . . . 2 . . . . . . . . . Part Schematics Acquired 7 | . . 1 . . 1 . . 3 . . 1 . 1 . Parts Built . | . . . . . . . . . . . . . . . Authchips . | . . . . . . . . . . . . . . . Time . | . . . . . . . . . . . . . . . Total Part Build Rating . | . . . . . . . . . . . . . . . Parts Repaired 1 | . . . . . . . . 1 . . . . . . Time 70 | . . . . . . . . 70 . . . . . . Parts Recycled . | . . . . . . . . . . . . . . . Recycled Matter . | . . . . . . . . . . . . . . . Retrieved Matter . | . . . . . . . . . . . . . . . Retrieved Components 6 | . . . . . 2 . 1 3 . . . . . . Parts Scanalyzed 7 | . . 1 . . 1 . . 3 . . 1 . 1 . Part Schematics Acquired 7 | . . 1 . . 1 . . 3 . . 1 . 1 . Parts Damaged 1 | . . . . . . . . 1 . . . . . . Bothacking | -11 -10 -9 -9 -8 -7 -6 -5 -4 -4 -4 -3 -3 -2 -1 ------------ Run | Yrd Mat Mat Min Mat Fac Fac Fac Fac Upp Upp Res Tes Res Acc Used RIF Installer . | . . . . . . . . . . . . . . . Robots Hacked . | . . . . . . . . . . . . . . . Non-combat . | . . . . . . . . . . . . . . . Combat . | . . . . . . . . . . . . . . . Robot Hacks Applied . | . . . . . . . . . . . . . . . Relay Couplers Released . | . . . . . . . . . . . . . . . Fabnet Peak Effective % . | . . . . . . . . . . . . . . . Robots Rewired . | . . . . . . . . . . . . . . . Allies Hacked . | . . . . . . . . . . . . . . . Hacks Repelled . | . . . . . . . . . . . . . . . Allies | -11 -10 -9 -9 -8 -7 -6 -5 -4 -4 -4 -3 -3 -2 -1 -------- Run | Yrd Mat Mat Min Mat Fac Fac Fac Fac Upp Upp Res Tes Res Acc Total Allies 5 | . . . 3 . 2 . . . . . . . . . Largest Group 3 | . . . 3 3 2 . . . . . . . . . Highest-Rated Group 40 | . . . 40 40 16 . . . . . . . . . Highest-Rated Ally 16 | . . . 16 16 8 . . . . . . . . . Total Orders 3 | . . . . . . . 3 . . . . . . . EXPLORE 3 | . . . . . . . 3 . . . . . . . Ally Attacks 29 | . . . . 29 . . . . . . . . . . Total Damage 260 | . . . . 260 . . . . . . . . . . Kills 3 | . . . . 3 . . . . . . . . . . Allies Corrupted . | . . . . . . . . . . . . . . . Allies Melted . | . . . . . . . . . . . . . . . Intel | -11 -10 -9 -9 -8 -7 -6 -5 -4 -4 -4 -3 -3 -2 -1 ------- Run | Yrd Mat Mat Min Mat Fac Fac Fac Fac Upp Upp Res Tes Res Acc Active Infowar (turns) 6000 | 2917 374 348 186 298 320 385 143 181 234 16 336 111 . 151 Optics 972 | . . . . . . . 96 181 234 16 336 109 . . Sensors 2389 | . . 274 186 298 320 385 143 181 234 16 90 111 . 151 Terrain 82 | 82 . . . . . . . . . . . . . . Seismic 3288 | 2835 374 79 . . . . . . . . . . . . Robot Analysis Total . | . . . . . . . . . . . . . . . Derelict Logs Recovered 3 | . . . 2 . . . . . 1 . . . . . Drone Launches 3 | . . . . . . . 3 . . . . . . . Drone Recoveries . | . . . . . . . . . . . . . . . Exploration | -11 -10 -9 -9 -8 -7 -6 -5 -4 -4 -4 -3 -3 -2 -1 ------------- Run | Yrd Mat Mat Min Mat Fac Fac Fac Fac Upp Upp Res Tes Res Acc Turns Passed 6606 | 3020 374 348 186 298 320 385 143 244 234 16 336 122 248 332 Spaces Moved 8600 | 1650 201 231 473 592 760 868 202 500 1115 53 330 274 598 753 Core 97 | 14 1 . . . . . . . . . . . . 82 Treads 8 | 8 . . . . . . . . . . . . . . Legs 2033 | 1628 200 205 . . . . . . . . . . . . Wheels . | . . . . . . . . . . . . . . . Hover . | . . . . . . . . . . . . . . . Flight 6462 | . . 26 473 592 760 868 202 500 1115 53 330 274 598 671 Fastest Speed 14 | 50 120 34 34 24 23 23 20 17 17 19 14 20 29 25 Average Speed 48 | 119 121 112 34 25 24 28 25 24 18 19 23 25 29 29 Slowest Speed 200 | 190 200 200 34 27 25 92 83 82 19 19 100 32 29 177 Overloaded Moves 57 | . . . . . . . . . . . 57 . . . Propulsion Burnouts . | . . . . . . . . . . . . . . . Robots Hopped 6 | . . . . 1 . 3 . . . . . . . 2 Potential Cave-ins . | . . . . . . . . . . . . . . . Cave-ins Triggered 1 | . . . . 1 . . . . . . . . . . Exploration Rate (%) 36 | 65 40 22 79 50 21 27 8 22 95 10 13 51 22 24 Regions Visited 14 Branch Regions 4 Pre-discovered Areas 2 | . . . 1 . . . . . 1 . . . . . Known Exits Taken 12 | . . 1 1 1 1 1 1 1 1 1 1 1 1 . Unknown Exits Taken 2 | 1 1 . . . . . . . . . . . . . Scrap Searched 8 | . . . 4 . . . . . 3 1 . . . . Spaces Dug 66 | . . . . 7 1 6 4 10 4 . 1 6 17 10 Terrain Destroyed 123 | . . 16 . 41 1 13 4 10 4 . 1 6 17 10 Melee 58 | . . . . . . 6 4 10 4 . 1 6 17 10 Projectile 7 | . . . . 7 . . . . . . . . . . AOE 57 | . . 16 . 34 . 7 . . . . . . . . Terrain Rammed . | . . . . . . . . . . . . . . . Walls Destroyed . | . . . . . . . . . . . . . . . Machines Disabled . | . . . . . . . . . . . . . . . Actions | -11 -10 -9 -9 -8 -7 -6 -5 -4 -4 -4 -3 -3 -2 -1 --------- Run | Yrd Mat Mat Min Mat Fac Fac Fac Fac Upp Upp Res Tes Res Acc Total 10642 | 2653 275 285 498 694 870 961 261 595 1126 58 580 316 642 828 Wait 1444 | 957 29 4 24 32 63 25 11 33 1 6 221 6 . 32 Move 8574 | 1649 200 230 472 589 759 861 201 499 1114 52 329 273 597 749 Hop 6 | . . . . 1 . 3 . . . . . . . 2 Pick Up 98 | 13 3 9 1 10 7 9 4 12 2 . 5 7 8 8 Fast Attach 31 | . 3 4 . 1 2 4 3 5 . . 3 2 1 3 Attach 47 | 7 . . . 5 . 6 4 10 . . 3 . 7 5 Detach 7 | . . . . . . 2 . 1 . . 1 1 1 1 Swap 90 | 2 5 10 . 16 11 14 6 3 1 . 5 10 3 4 Drop 95 | 1 2 11 1 12 14 11 4 9 1 . 7 11 6 5 Fire 132 | 23 33 17 . 28 14 17 . . . . . . . . Melee 102 | . . . . . . 9 20 16 7 . 6 6 19 19 Ram . | . . . . . . . . . . . . . . . Kick 1 | 1 . . . . . . . . . . . . . . Crush . | . . . . . . . . . . . . . . . Escape Stasis 15 | . . . . . . . 8 7 . . . . . . Rewire . | . . . . . . . . . . . . . . . Trap . | . . . . . . . . . . . . . . . Miscellaneous . | . . . . . . . . . . . . . . . Route ------- -11/Scrapyard -10/Materials (discovered 2 exits: *Mat x2) -9/Materials -9/Mines -8/Materials (discovered 2 exits: *Fac x2) -7/Factory (discovered 2 exits: *Fac / Sto) -6/Factory -5/Factory -4/Factory -4/Upper Caves -4/Upper Caves -3/Research -3/Testing -2/Research -1/Access History --------- Turn | Location | Event 8 | -11/Scrapyard | Discovered new exit (range 15) 3021 | -11/Scrapyard | Entered Materials 3022 | -10/Materials | Build established: Mutant 3161 | -10/Materials | Discovered new exit (range 16) 3370 | -10/Materials | Discovered new exit (range 4) 3395 | -10/Materials | Entered another Materials area 3395 | -9/Materials | Evolved 2 slots: Propulsion x1, Utility x1 3638 | -9/Materials | Discovered new exit (range 12) 3693 | -9/Materials | Build established: Scavenger-Mutant 3743 | -9/Materials | Identified exit to Mines 3743 | -9/Materials | Entered Mines 3776 | -9/Mines | Learned location of Zion (-6) 3780 | -9/Mines | Assembled infested the area 3785 | -9/Mines | Assisted by a Guerilla fighting off Assembled 3875 | -9/Mines | Assisted by bots powering up and referring to "LRC-V3" 3889 | -9/Mines | Discovered new exit (range 8) 3896 | -9/Mines | Identified exit to Materials 3929 | -9/Mines | Entered Materials 3929 | -8/Materials | Accompanied by 3 allies 3929 | -8/Materials | Evolved 2 slots: Propulsion x2 4054 | -8/Materials | Lost 3 allies 4109 | -8/Materials | Discovered new exit (range 15) 4120 | -8/Materials | Crushed by falling debris 4169 | -8/Materials | Core integrity fell below 50% 4184 | -8/Materials | Discovered new exit (range 16) 4203 | -8/Materials | Lost 3 parts (1n2w) 4212 | -8/Materials | Build established: Sprinter 4227 | -8/Materials | Identified exit to Factory 4227 | -8/Materials | Entered Factory 4227 | -7/Factory | Evolved 2 slots: Utility x2 4228 | -7/Factory | Identified exit to Storage 4307 | -7/Factory | Identified exit to DSF 4417 | -7/Factory | Fabricated R-06 Scavenger (x2) 4536 | -7/Factory | Discovered new exit (range 14) 4543 | -7/Factory | Identified exit to Factory 4547 | -7/Factory | Entered another Factory area 4547 | -6/Factory | Evolved 2 slots: Power x1, Utility x1 4811 | -6/Factory | Spotted B-75 Beast 4917 | -6/Factory | Discovered new exit (range 14) 4920 | -6/Factory | Identified exit to Factory 4932 | -6/Factory | Entered another Factory area 4932 | -5/Factory | Evolved 2 slots: Propulsion x1, Utility x1 4959 | -5/Factory | Lost 4 parts (1p3u) 4985 | -5/Factory | Discovered new exit (range 7) 5075 | -5/Factory | Identified exit to Factory 5075 | -5/Factory | Entered another Factory area 5075 | -4/Factory | Evolved 2 slots: Utility x1, Weapon x1 5087 | -4/Factory | Lost 3 allies 5198 | -4/Factory | Build established: Scout 5234 | -4/Factory | Repaired Broken Nuclear Pulse Thruster? 5274 | -4/Factory | Spotted B-86 Titan 5289 | -4/Factory | Discovered new exit (range 22) 5311 | -4/Factory | Lost 3 parts (2n1w) 5313 | -4/Factory | Identified exit to Upper Caves 5319 | -4/Factory | Entered Upper Caves 5508 | -4/Upper Caves | Attracted the attention of an 0b10 outpost 5520 | -4/Upper Caves | Entered a destroyed Warlord outpost 5542 | -4/Upper Caves | Discovered new exit (range 14) 5545 | -4/Upper Caves | Identified exit to Upper Caves 5553 | -4/Upper Caves | Entered another Upper Caves area 5557 | -4/Upper Caves | Discovered new exit (range 18) 5560 | -4/Upper Caves | Identified exit to Research 5569 | -4/Upper Caves | Entered Research 5569 | -3/Research | Evolved 2 slots: Propulsion x1, Utility x1 5877 | -3/Research | Spotted B-86 Titan 5886 | -3/Research | Discovered new exit (range 7) 5904 | -3/Research | Identified exit to Testing 5905 | -3/Research | Entered Testing 5909 | -3/Testing | Found Prototype Processor 5910 | -3/Testing | Identified Exp. Signal Interpreter 6005 | -3/Testing | Spotted Superbehemoth 6023 | -3/Testing | Discovered new exit (range 5) 6027 | -3/Testing | Identified exit to Research 6027 | -3/Testing | Entered Research 6027 | -2/Research | Evolved 2 slots: Power x1, Propulsion x1 6160 | -2/Research | Spotted B-90 Cyclops 6223 | -2/Research | Found Prototype Device 6233 | -2/Research | Discovered new exit (range 10) 6236 | -2/Research | Identified exit to Access 6241 | -2/Research | Identified Exp. Shock Absorption System 6243 | -2/Research | Found Prototype Processor 6243 | -2/Research | Identified Exp. Armor Integrity Analyzer 6275 | -2/Research | Entered Access 6275 | -1/Access | Evolved 2 slots: Propulsion x2 6322 | -1/Access | Build established: Sprinter 6409 | -1/Access | Garrison activated, responded to threat 6422 | -1/Access | Spotted B-99 Colossus 6545 | -1/Access | Released all parts (15) 6547 | -1/Access | System corruption reached 10% 6554 | -1/Access | Spotted B-99 Colossus 6577 | -1/Access | Lost 7 parts (1p5n1u) 6578 | -1/Access | Core integrity fell below 50% 6589 | -1/Access | Core integrity fell below 20% 6607 | -1/Access | Destroyed by P-80 Master with Gamma Rifle Last Messages --------------- 06586_ Impulse Thruster Array destroyed. 06586_ Penetrated by Slug. 06586_ K-01 Serf destroyed. 06586_ Penetrated by Slug. 06586_ B-99 Colossus suffers critical hit (Destroy). 06588_ Penetrated by Slug. 06588_ Slug penetrates G-73 Enforcer. 06589_ Penetrated by Slug. 06591_ Slug penetrates Wall. 06591_ Penetrated by Slug. 06591_ Slug penetrates Wall. 06591_ Acquired 1 matter. 06593_ LYVG&GV#ZISU&C BKAO1RZGVIPGEJ 06594_ Slug penetrates Wall. 06594_ Penetrated by Slug. 06605_ Slug penetrates Wall. 06606_ ALERT: Potential suspicious activity detected, Programmers report to Access Zone 9R. 06607_ K-01 Serf destroyed. [Achievement: Just Browsing] Map ----- +----------------------------------------------------+ | ######## #? #????????????? | | # ## #????????????? | | # ## #????????????? | | "" # ######### #????????????? | | """" # #???????# #????????????? | | """" # #???????# #????????????? | | "" / #???????# ][ #????????????? | | """ # #???????# [! #????????????? | | """ # #????????? #????????????? | | "" # #??????????? #????????????? | | " # #????????????? #????????????? | | #=% ######?????????? ?????????????? | | # = #############+####???????????? | | ######## #???????????? | | ???????# h #???????????? | | ???????# gg ########### #???????????? | | ???????# !! p #?????????# #???????????? | | ?????# !! ###########+###?????????? | | ?????# !! ## [ #?????????? | | ?????### p ## #?????????? | | ???????# ""Y""p ## #?????????? | | ???????# """"" % ## #?????????? | | ???????# ## #?????????? | | ???????# # """""" #?????????? | | ???????# + """""" #?????????? | | ???????# ######@# """""" #?????????? | | ???????? ?????#t# """""" #?????????? | | ??????????? ??????# # """""" #?????????? | | ????????????? ??????# # ?? #?????????? | | ????????????????????????# # ? #?????????? | | ????????????????????????#h##############?????????? | | ????????????????????????# #??????????????????????? | | ????????????????????????# #??????????????????????? | | ????????????????????????#h#??????????????????????? | | ????????????????????????? ???????????????????????? | | ????????????????????????? ???????????????????????? | | ????????????????????????? ???????????????????????? | | ????????????????????????? ???????????????????????? | | ?????????????????????????u???????????????????????? | | ????????????????????????? ???????????????????????? | | ????????????????????????? ???????????????????????? | | ?????????????????????????????????????????????????? | | ?????????????????????????????????????????????????? | | ?????????????????????????????????????????????????? | | ?????????????????????????????????????????????????? | | ?????????????????????????????????????????????????? | | ?????????????????????????????????????????????????? | | ?????????????????????????????????????????????????? | | ?????????????????????????????????????????????????? | | ?????????????????????????????????????????????????? | +----------------------------------------------------+ Best States ------------- Heat Dissipation 77 Energy Generation 48 Energy Capacity 350 Matter Stores 300 Matter Capacity 300 Sight Range 22 Robot Scan Range 16 Terrain Scan Range 16 Terrain Scan Density 10 Additional Mass Support 9 Armor Coverage 225 Evasion (%) 73 Melee Accuracy 24 Recoil Reduction 1 Force Boost 30 Offensive Hacking 14 Item Schematics ----------------- Imp. Signal Interpreter | -9/Materials | Scanalyzed Imp. VTOL Module | -7/Factory | Scanalyzed Lance | -4/Factory | Scanalyzed Graphene Brace | -4/Factory | Scanalyzed Adv. Signal Interpreter | -4/Factory | Scanalyzed Neutrino Core | -3/Research | Scanalyzed Plasma Sword | -2/Research | Scanalyzed Robot Schematics ------------------ None Fabricated ------------ R-06 Scavenger | x2 | -7/Factory | Preloaded Repaired ---------- Nuclear Pulse Thruster | 99% | -4/Factory | Broken Alien Tech Used ----------------- None Achievements -------------- Denied? Hunted Just Browsing Knowing Is Half The Battle My Command Is Your Wish Rockin' Loadout Challenges ------------ None Game ------ Seed DeuteriumComponentAutobeam Manual? 0 Play Time 02:01:52 Cumulative 21.1 hours Start 2025.05.28 @ 13:41:06 End 2025.05.28 @ 15:43:48 Sessions 1 Manual Loads 0 Difficulty Rogue Special Mode None Game No. 27 Rogue 27 Adventurer 0 Explorer 0 Win Type - Total 0 Types 0/0/0/0/0/0/0/0/0/0 Lore% 20 Gallery% 25 Achievement% 23 Wizard Run 0 Options --------- Layout 0 ASCII 0 Keyboard 0 Movement Mouse Keybinds 0 Fullscreen 1 Font 18/SmallcapsGlow Map View 76x50 Zoom Use 0% Tactical HUD 1 Map Filters NONE Filters NONE Steam 1 RUN: 30bcdcd4-d7ce-4072-a86b-43fe5f8d8eb5